[Event "*** SCC Grand Prix: Titled Tuesday Blitz"]
[Site "Chess.com"]
[Date "2020.08.25"]
[Round "2"]
[White "FairChess_on_YouTube"]
[Black "Gurvich_Vitaly"]
[Result "1-0"]
[WhiteElo "2994"]
[BlackElo "2583"]
[TimeControl "180+1"]
[EndTime "10:20:11 PDT"]
[Termination "FairChess_on_YouTube won by checkmate"]

1. d4 {[%clk 0:03:00.9]} 1... d5 {[%clk 0:02:59.6]} 2. c4 {[%clk 0:03:00.9]}
2... dxc4 {[%clk 0:02:59.7]} 3. e3 {[%clk 0:02:59.7]} 3... Nf6 {[%clk
0:02:59.2]} 4. Bxc4 {[%clk 0:02:59.4]} 4... e6 {[%clk 0:02:59.7]} 5. Nf3 {[%clk
0:02:59.6]} 5... a6 {[%clk 0:02:59.9]} 6. O-O {[%clk 0:02:58.4]} 6... Nbd7
{[%clk 0:02:58.2]} 7. a4 {[%clk 0:02:45.7]} 7... b6 {[%clk 0:02:57.9]} 8. e4
{[%clk 0:02:40.3]} 8... Nxe4 {[%clk 0:02:47.3]} 9. d5 {[%clk 0:02:40.5]} 9...
Ndf6 {[%clk 0:02:34.3]} 10. dxe6 {[%clk 0:02:40.6]} 10... Bxe6 {[%clk
0:02:31.5]} 11. Bxe6 {[%clk 0:02:39.3]} 11... fxe6 {[%clk 0:02:32.4]} 12. Qc2
{[%clk 0:02:36.9]} 12... Bc5 {[%clk 0:02:22.9]} 13. b4 {[%clk 0:02:36.1]} 13...
Bxb4 {[%clk 0:02:14.2]} 14. Qc6+ {[%clk 0:02:35.6]} 14... Ke7 {[%clk 0:02:03.2]}
15. Bf4 {[%clk 0:02:14.2]} 15... Nd5 {[%clk 0:02:02.4]} 16. Be5 {[%clk
0:02:00.4]} 16... Rf8 {[%clk 0:01:48.3]} 17. Ra2 {[%clk 0:01:56]} 17... Nc5
{[%clk 0:01:38.3]} 18. Nd4 {[%clk 0:01:41.4]} 18... Qd7 {[%clk 0:01:30.7]} 19.
Bxg7 {[%clk 0:01:39.7]} 19... Rf7 {[%clk 0:01:13.4]} 20. Bh6 {[%clk 0:01:36.4]}
20... Qxc6 {[%clk 0:01:02.2]} 21. Nxc6+ {[%clk 0:01:36.1]} 21... Kd6 {[%clk
0:01:02.6]} 22. Nxb4 {[%clk 0:01:32.8]} 22... Nxb4 {[%clk 0:01:03.5]} 23. Re2
{[%clk 0:01:32.7]} 23... Rg8 {[%clk 0:00:40.7]} 24. Nd2 {[%clk 0:01:28.6]} 24...
Rg6 {[%clk 0:00:35.8]} 25. Nc4+ {[%clk 0:01:24.4]} 25... Ke7 {[%clk 0:00:34.8]}
26. Bd2 {[%clk 0:01:23.8]} 26... Nbd3 {[%clk 0:00:27.8]} 27. a5 {[%clk
0:01:20.3]} 27... b5 {[%clk 0:00:27.5]} 28. Ne3 {[%clk 0:01:20.3]} 28... Kd7
{[%clk 0:00:24.5]} 29. Rd1 {[%clk 0:01:16.8]} 29... Kc6 {[%clk 0:00:23.6]} 30.
g3 {[%clk 0:01:15.2]} 30... Rd7 {[%clk 0:00:23]} 31. Bc3 {[%clk 0:01:09.3]}
31... Rg8 {[%clk 0:00:17.3]} 32. Rc2 {[%clk 0:01:06.7]} 32... Kb7 {[%clk
0:00:13.8]} 33. Bf6 {[%clk 0:01:05]} 33... Rg6 {[%clk 0:00:12.3]} 34. Bh8 {[%clk
0:01:02]} 34... Rg8 {[%clk 0:00:12.1]} 35. Bf6 {[%clk 0:01:01.8]} 35... Rg6
{[%clk 0:00:11.9]} 36. Bh4 {[%clk 0:01:01.7]} 36... Rg8 {[%clk 0:00:10.8]} 37.
Kf1 {[%clk 0:00:54.5]} 37... e5 {[%clk 0:00:05.7]} 38. Nf5 {[%clk 0:00:48]}
38... e4 {[%clk 0:00:04.3]} 39. h3 {[%clk 0:00:38.6]} 39... Rf8 {[%clk 0:00:03]}
40. g4 {[%clk 0:00:38.8]} 40... Re8 {[%clk 0:00:02.9]} 41. Bg5 {[%clk
0:00:36.9]} 41... Re6 {[%clk 0:00:03.1]} 42. Be3 {[%clk 0:00:37]} 42... Rc6
{[%clk 0:00:03.2]} 43. Nd4 {[%clk 0:00:32]} 43... Rcd6 {[%clk 0:00:03]} 44. Ne2
{[%clk 0:00:32]} 44... Rc6 {[%clk 0:00:03]} 45. Ng3 {[%clk 0:00:30.7]} 45...
Rcd6 {[%clk 0:00:02.5]} 46. g5 {[%clk 0:00:22]} 46... Rc6 {[%clk 0:00:02.5]} 47.
h4 {[%clk 0:00:22.3]} 47... Rf7 {[%clk 0:00:02.1]} 48. h5 {[%clk 0:00:20.3]}
48... Ne6 {[%clk 0:00:02.3]} 49. Rxc6 {[%clk 0:00:19.5]} 49... Kxc6 {[%clk
0:00:03.2]} 50. Nxe4 {[%clk 0:00:19.8]} 50... Ne5 {[%clk 0:00:03.8]} 51. Kg2
{[%clk 0:00:19]} 51... b4 {[%clk 0:00:03]} 52. Rc1+ {[%clk 0:00:18.7]} 52... Kb5
{[%clk 0:00:03.3]} 53. Nc5 {[%clk 0:00:18.6]} 53... Nd8 {[%clk 0:00:03.1]} 54.
Nb3 {[%clk 0:00:18.1]} 54... Ng4 {[%clk 0:00:01.9]} 55. Nd4+ {[%clk 0:00:14.4]}
55... Ka4 {[%clk 0:00:02]} 56. Ra1# {[%clk 0:00:14.1]} 1-0

[Event "*** SCC Grand Prix: Titled Tuesday Blitz"]
[Site "Chess.com"]
[Date "2020.08.25"]
[Round "2"]
[White "SergeyKarjakin"]
[Black "vovachesss"]
[Result "1-0"]
[WhiteElo "2981"]
[BlackElo "2583"]
[TimeControl "180+1"]
[EndTime "10:20:11 PDT"]
[Termination "SergeyKarjakin won by checkmate"]

1. e4 {[%clk 0:03:00.9]} 1... Nf6 {[%clk 0:02:57.9]} 2. e5 {[%clk 0:03:00.6]}
2... Nd5 {[%clk 0:02:58.4]} 3. d4 {[%clk 0:03:01.4]} 3... d6 {[%clk 0:02:58.8]}
4. Nf3 {[%clk 0:03:02.1]} 4... dxe5 {[%clk 0:02:58.7]} 5. Nxe5 {[%clk
0:03:01.2]} 5... c6 {[%clk 0:02:59.2]} 6. Be2 {[%clk 0:03:01.6]} 6... Nd7 {[%clk
0:02:59.3]} 7. Nf3 {[%clk 0:03:00.8]} 7... N7f6 {[%clk 0:02:59.4]} 8. O-O {[%clk
0:03:00.6]} 8... Bf5 {[%clk 0:02:59.6]} 9. c4 {[%clk 0:03:01.1]} 9... Nb6 {[%clk
0:02:58.7]} 10. Nc3 {[%clk 0:03:00.2]} 10... e6 {[%clk 0:02:58.6]} 11. Nh4
{[%clk 0:02:59.7]} 11... Bg6 {[%clk 0:02:58.1]} 12. g3 {[%clk 0:02:50.4]} 12...
Be7 {[%clk 0:02:57.3]} 13. Re1 {[%clk 0:02:40.6]} 13... O-O {[%clk 0:02:56.9]}
14. Nxg6 {[%clk 0:02:40.4]} 14... hxg6 {[%clk 0:02:57.8]} 15. Be3 {[%clk
0:02:38]} 15... Qc7 {[%clk 0:02:54.4]} 16. Qb3 {[%clk 0:02:32.2]} 16... Rfd8
{[%clk 0:02:52]} 17. Rad1 {[%clk 0:02:31.2]} 17... Rd7 {[%clk 0:02:26.6]} 18.
Bf4 {[%clk 0:02:16.2]} 18... Qd8 {[%clk 0:02:18.6]} 19. Be5 {[%clk 0:02:15.9]}
19... Ne8 {[%clk 0:02:09.9]} 20. Bg4 {[%clk 0:01:59.9]} 20... Bf6 {[%clk
0:01:58.4]} 21. Ne4 {[%clk 0:01:52.3]} 21... Bxe5 {[%clk 0:01:24.3]} 22. dxe5
{[%clk 0:01:53.2]} 22... Rb8 {[%clk 0:01:12]} 23. f4 {[%clk 0:01:38.5]} 23...
Qe7 {[%clk 0:00:38.8]} 24. Rxd7 {[%clk 0:01:33.5]} 24... Nxd7 {[%clk 0:00:38.9]}
25. Rd1 {[%clk 0:01:32]} 25... f5 {[%clk 0:00:22.5]} 26. exf6 {[%clk 0:01:32]}
26... Nexf6 {[%clk 0:00:23.2]} 27. Bf3 {[%clk 0:01:32.5]} 27... Nxe4 {[%clk
0:00:22.9]} 28. Bxe4 {[%clk 0:01:33.4]} 28... g5 {[%clk 0:00:21.8]} 29. fxg5
{[%clk 0:01:06.1]} 29... Nc5 {[%clk 0:00:20.2]} 30. Qe3 {[%clk 0:01:06]} 30...
Nxe4 {[%clk 0:00:15.4]} 31. Qxe4 {[%clk 0:01:06.9]} 31... Qxg5 {[%clk
0:00:13.4]} 32. Qxe6+ {[%clk 0:01:06.3]} 32... Kh8 {[%clk 0:00:14]} 33. Kg2
{[%clk 0:00:58.4]} 33... Rf8 {[%clk 0:00:13.4]} 34. Rd4 {[%clk 0:00:57.1]} 34...
g6 {[%clk 0:00:09.5]} 35. Rg4 {[%clk 0:00:46.7]} 35... Qd2+ {[%clk 0:00:09.3]}
36. Kh3 {[%clk 0:00:47.2]} 36... Qf2 {[%clk 0:00:04.1]} 37. Qxg6 {[%clk
0:00:42.2]} 37... Qf1+ {[%clk 0:00:03.8]} 38. Kh4 {[%clk 0:00:42.4]} 38... Qf7
{[%clk 0:00:03.6]} 39. Qh6+ {[%clk 0:00:30.5]} 39... Qh7 {[%clk 0:00:04.2]} 40.
Qxh7+ {[%clk 0:00:30.8]} 40... Kxh7 {[%clk 0:00:05.1]} 41. Rf4 {[%clk
0:00:31.2]} 41... Rd8 {[%clk 0:00:03.9]} 42. Rf7+ {[%clk 0:00:31]} 42... Kg6
{[%clk 0:00:04.5]} 43. Rxb7 {[%clk 0:00:31.9]} 43... Rd4+ {[%clk 0:00:04.6]} 44.
g4 {[%clk 0:00:31.2]} 44... Rxc4 {[%clk 0:00:05.5]} 45. Rxa7 {[%clk 0:00:28.5]}
45... Rc2 {[%clk 0:00:06.4]} 46. h3 {[%clk 0:00:25.6]} 46... Rxb2 {[%clk
0:00:06.7]} 47. a4 {[%clk 0:00:23.7]} 47... Rb3 {[%clk 0:00:06.2]} 48. a5 {[%clk
0:00:23.2]} 48... Ra3 {[%clk 0:00:06.2]} 49. Rc7 {[%clk 0:00:22.4]} 49... Rxa5
{[%clk 0:00:04.9]} 50. Rxc6+ {[%clk 0:00:22.5]} 50... Kg7 {[%clk 0:00:05.8]} 51.
g5 {[%clk 0:00:22.4]} 51... Ra3 {[%clk 0:00:05.5]} 52. Kg4 {[%clk 0:00:22.5]}
52... Ra4+ {[%clk 0:00:05.7]} 53. Kh5 {[%clk 0:00:22.3]} 53... Ra3 {[%clk
0:00:06.1]} 54. Rc7+ {[%clk 0:00:22.4]} 54... Kg8 {[%clk 0:00:06.6]} 55. h4
{[%clk 0:00:22.7]} 55... Ra6 {[%clk 0:00:06.3]} 56. g6 {[%clk 0:00:22]} 56...
Ra4 {[%clk 0:00:06.7]} 57. Kg5 {[%clk 0:00:22.1]} 57... Rb4 {[%clk 0:00:06.3]}
58. h5 {[%clk 0:00:21.7]} 58... Kh8 {[%clk 0:00:06.6]} 59. Rc8+ {[%clk
0:00:21.2]} 59... Kg7 {[%clk 0:00:06.2]} 60. h6# {[%clk 0:00:21.2]} 1-0

[Event "*** SCC Grand Prix: Titled Tuesday Blitz"]
[Site "Chess.com"]
[Date "2020.08.25"]
[Round "2"]
[White "GigaQuparadze"]
[Black "pastouche06"]
[Result "1-0"]
[WhiteElo "2818"]
[BlackElo "2514"]
[TimeControl "180+1"]
[EndTime "10:20:13 PDT"]
[Termination "GigaQuparadze won by checkmate"]

1. e4 {[%clk 0:03:00.9]} 1... c6 {[%clk 0:02:58.2]} 2. d3 {[%clk 0:02:58.4]}
2... d5 {[%clk 0:02:57.5]} 3. Nd2 {[%clk 0:02:59.3]} 3... g6 {[%clk 0:02:55.5]}
4. Ngf3 {[%clk 0:02:59.4]} 4... Bg7 {[%clk 0:02:55.6]} 5. d4 {[%clk 0:02:59.5]}
5... Nh6 {[%clk 0:02:51.7]} 6. h3 {[%clk 0:02:58.7]} 6... f6 {[%clk 0:02:50.5]}
7. c3 {[%clk 0:02:58]} 7... O-O {[%clk 0:02:49.8]} 8. Bd3 {[%clk 0:02:55.5]}
8... Nf7 {[%clk 0:02:48.5]} 9. exd5 {[%clk 0:02:55.4]} 9... cxd5 {[%clk
0:02:48.1]} 10. c4 {[%clk 0:02:55.8]} 10... Nc6 {[%clk 0:02:34.8]} 11. cxd5
{[%clk 0:02:53]} 11... Nb4 {[%clk 0:02:22.4]} 12. Bc4 {[%clk 0:02:48.4]} 12...
Bf5 {[%clk 0:02:03.8]} 13. O-O {[%clk 0:02:38.6]} 13... Nc2 {[%clk 0:02:03.7]}
14. Rb1 {[%clk 0:02:38.2]} 14... Nb4 {[%clk 0:02:03.9]} 15. Qb3 {[%clk
0:02:31.3]} 15... a5 {[%clk 0:01:38.4]} 16. Ra1 {[%clk 0:02:20.9]} 16... Nc2
{[%clk 0:01:33.2]} 17. Rb1 {[%clk 0:02:20.8]} 17... Nb4 {[%clk 0:01:33.3]} 18.
a3 {[%clk 0:02:21.1]} 18... Bc2 {[%clk 0:01:29.8]} 19. Qc3 {[%clk 0:02:20.3]}
19... Bxb1 {[%clk 0:01:28.6]} 20. axb4 {[%clk 0:02:19]} 20... Bf5 {[%clk
0:01:23.7]} 21. Nb3 {[%clk 0:02:18.7]} 21... axb4 {[%clk 0:01:21.7]} 22. Qxb4
{[%clk 0:02:19.6]} 22... Nd6 {[%clk 0:01:22.1]} 23. Nc5 {[%clk 0:02:19.4]} 23...
Qa5 {[%clk 0:01:04.3]} 24. Qb3 {[%clk 0:02:11.8]} 24... Rfc8 {[%clk 0:00:56.1]}
25. Be2 {[%clk 0:02:00.8]} 25... b6 {[%clk 0:00:52.4]} 26. Bd2 {[%clk
0:01:59.2]} 26... Qa2 {[%clk 0:00:49.9]} 27. Qxb6 {[%clk 0:01:55.4]} 27... Rab8
{[%clk 0:00:49.8]} 28. Qa5 {[%clk 0:01:53]} 28... Qxa5 {[%clk 0:00:46.2]} 29.
Bxa5 {[%clk 0:01:53.9]} 29... Rxb2 {[%clk 0:00:46.7]} 30. Ba6 {[%clk 0:01:53.4]}
30... Ra8 {[%clk 0:00:44.6]} 31. g4 {[%clk 0:01:49.1]} 31... Be4 {[%clk
0:00:43.5]} 32. Nd2 {[%clk 0:01:42]} 32... Bxd5 {[%clk 0:00:40.4]} 33. Bc3
{[%clk 0:01:40.1]} 33... Rc2 {[%clk 0:00:39.3]} 34. Bb4 {[%clk 0:01:39.6]} 34...
Nc4 {[%clk 0:00:32.1]} 35. Nb1 {[%clk 0:01:27.6]} 35... f5 {[%clk 0:00:30.1]}
36. Nc3 {[%clk 0:01:21.2]} 36... Bf7 {[%clk 0:00:25.6]} 37. Nb5 {[%clk
0:01:09.7]} 37... Nd2 {[%clk 0:00:20.2]} 38. Rd1 {[%clk 0:01:07.9]} 38... Nf3+
{[%clk 0:00:18.8]} 39. Kg2 {[%clk 0:01:08]} 39... fxg4 {[%clk 0:00:17.6]} 40.
hxg4 {[%clk 0:01:07.8]} 40... Bd5 {[%clk 0:00:18.1]} 41. Nc7 {[%clk 0:01:06.9]}
41... Nh4+ {[%clk 0:00:16.5]} 42. Kg3 {[%clk 0:01:06.8]} 42... Rf8 {[%clk
0:00:15.6]} 43. Nxd5 {[%clk 0:01:02.5]} 43... Rf3+ {[%clk 0:00:10.5]} 44. Kxh4
{[%clk 0:01:00.9]} 44... Rcxf2 {[%clk 0:00:11.4]} 45. Rd2 {[%clk 0:00:40.9]}
45... g5+ {[%clk 0:00:07]} 46. Kxg5 {[%clk 0:00:36.6]} 46... Rf1 {[%clk
0:00:06.1]} 47. Nxe7+ {[%clk 0:00:34.1]} 47... Kf7 {[%clk 0:00:05.5]} 48. Bxf1
{[%clk 0:00:19.9]} 48... Bf6+ {[%clk 0:00:04.6]} 49. Kh5 {[%clk 0:00:19.7]}
49... Rxf1 {[%clk 0:00:05.5]} 50. g5 {[%clk 0:00:19.9]} 50... Rh1+ {[%clk
0:00:02.3]} 51. Kg4 {[%clk 0:00:19.9]} 51... Bxe7 {[%clk 0:00:03.2]} 52. Rf2+
{[%clk 0:00:19.1]} 52... Kg6 {[%clk 0:00:03.1]} 53. Kf3 {[%clk 0:00:19.4]} 53...
Bxg5 {[%clk 0:00:03]} 54. Rg2 {[%clk 0:00:19.8]} 54... Rd1 {[%clk 0:00:02.4]}
55. Ne4 {[%clk 0:00:19.8]} 55... Rxd4 {[%clk 0:00:01.8]} 56. Rxg5+ {[%clk
0:00:19.5]} 56... Kh6 {[%clk 0:00:02.1]} 57. Bf8# {[%clk 0:00:18.5]} 1-0

[Event "*** SCC Grand Prix: Titled Tuesday Blitz"]
[Site "Chess.com"]
[Date "2020.08.25"]
[Round "2"]
[White "Aleksandar-Topalov"]
[Black "bocah_sakit"]
[Result "0-1"]
[WhiteElo "2272"]
[BlackElo "2608"]
[TimeControl "180+1"]
[EndTime "10:20:13 PDT"]
[Termination "bocah_sakit won by resignation"]

1. b3 {[%clk 0:03:00.9]} 1... Nf6 {[%clk 0:02:59.5]} 2. Bb2 {[%clk 0:03:01.3]}
2... g6 {[%clk 0:03:00.2]} 3. Bxf6 {[%clk 0:03:00.6]} 3... exf6 {[%clk
0:03:01.1]} 4. c4 {[%clk 0:03:00.7]} 4... d5 {[%clk 0:03:01.6]} 5. cxd5 {[%clk
0:03:00.4]} 5... Qxd5 {[%clk 0:03:02.5]} 6. Nc3 {[%clk 0:02:59.8]} 6... Qd8
{[%clk 0:03:03]} 7. e3 {[%clk 0:02:59.2]} 7... Ba3 {[%clk 0:03:01.1]} 8. Nge2
{[%clk 0:02:53.4]} 8... O-O {[%clk 0:03:01.3]} 9. d4 {[%clk 0:02:52.3]} 9... c6
{[%clk 0:03:01.3]} 10. g3 {[%clk 0:02:51.8]} 10... Nd7 {[%clk 0:02:54]} 11. Bg2
{[%clk 0:02:51.7]} 11... f5 {[%clk 0:02:54.7]} 12. O-O {[%clk 0:02:50.9]} 12...
Nf6 {[%clk 0:02:55.3]} 13. Qc2 {[%clk 0:02:47.5]} 13... Be6 {[%clk 0:02:53.7]}
14. Nf4 {[%clk 0:02:42.8]} 14... Re8 {[%clk 0:02:53.5]} 15. Nxe6 {[%clk
0:02:41.5]} 15... Rxe6 {[%clk 0:02:54.4]} 16. Rfd1 {[%clk 0:02:39.8]} 16... Qa5
{[%clk 0:02:47.5]} 17. Nb1 {[%clk 0:02:35]} 17... Bf8 {[%clk 0:02:45.9]} 18. a3
{[%clk 0:02:33.9]} 18... Rd8 {[%clk 0:02:44.2]} 19. Nc3 {[%clk 0:02:33.7]} 19...
Qc7 {[%clk 0:02:30.3]} 20. b4 {[%clk 0:02:33.2]} 20... a5 {[%clk 0:02:30.2]} 21.
Rab1 {[%clk 0:02:32.8]} 21... axb4 {[%clk 0:02:30.1]} 22. axb4 {[%clk
0:02:33.7]} 22... h5 {[%clk 0:02:14.1]} 23. Na4 {[%clk 0:02:33]} 23... Red6
{[%clk 0:01:56.4]} 24. b5 {[%clk 0:02:25.8]} 24... Nd5 {[%clk 0:01:56.2]} 25.
Nc5 {[%clk 0:02:14.6]} 25... b6 {[%clk 0:01:34.5]} 26. Na6 {[%clk 0:02:10.4]}
26... Qd7 {[%clk 0:01:34.4]} 27. Bxd5 {[%clk 0:02:07.8]} 27... cxd5 {[%clk
0:01:35.3]} 28. Rdc1 {[%clk 0:02:00]} 28... h4 {[%clk 0:01:33.2]} 29. Qc7 {[%clk
0:01:59.8]} 29... Qe6 {[%clk 0:01:32.7]} 30. Qc2 {[%clk 0:01:45.8]} 30... Bg7
{[%clk 0:01:27.6]} 31. Qd1 {[%clk 0:01:37.6]} 31... Qe4 {[%clk 0:01:18.9]} 32.
Qf1 {[%clk 0:01:29]} 32... g5 {[%clk 0:01:14.2]} 33. Qg2 {[%clk 0:01:25.2]}
33... Qe7 {[%clk 0:00:46.7]} 34. Rc7 {[%clk 0:01:23.2]} 34... Qe6 {[%clk
0:00:44.4]} 35. Rbc1 {[%clk 0:01:21.3]} 35... f4 {[%clk 0:00:40.6]} 36. Qf3
{[%clk 0:01:09.3]} 36... fxe3 {[%clk 0:00:38.7]} 37. fxe3 {[%clk 0:01:09.4]}
37... g4 {[%clk 0:00:37.7]} 38. Qf2 {[%clk 0:01:03.7]} 38... Bh6 {[%clk
0:00:33.1]} 39. Re1 {[%clk 0:00:58.3]} 39... Re8 {[%clk 0:00:24.8]} 40. Rc3
{[%clk 0:00:49.3]} 40... Qg6 {[%clk 0:00:20.5]} 41. Nb4 {[%clk 0:00:45]} 41...
hxg3 {[%clk 0:00:14]} 42. Qxg3 {[%clk 0:00:42.1]} 42... Ree6 {[%clk 0:00:11.2]}
43. Nd3 {[%clk 0:00:34]} 43... Re4 {[%clk 0:00:04.1]} 44. Ne5 {[%clk 0:00:32.6]}
44... Qg5 {[%clk 0:00:04.1]} 45. Kg2 {[%clk 0:00:21.1]} 45... Rf6 {[%clk
0:00:04.1]} 46. Rc8+ {[%clk 0:00:19.5]} 46... Kh7 {[%clk 0:00:04.6]} 47. Rc3
{[%clk 0:00:19.6]} 47... Kg7 {[%clk 0:00:04.9]} 48. Ra3 {[%clk 0:00:17.9]} 48...
Qh5 {[%clk 0:00:05.2]} 49. Rc3 {[%clk 0:00:15.4]} 49... Rf5 {[%clk 0:00:05.2]}
50. Rc7 {[%clk 0:00:13.7]} 50... Bg5 {[%clk 0:00:05.5]} 51. Rc3 {[%clk
0:00:10.6]} 51... Bh4 {[%clk 0:00:05.7]} 52. Qxg4+ {[%clk 0:00:05.6]} 52...
Rxg4+ {[%clk 0:00:05.1]} 53. Nxg4 {[%clk 0:00:06]} 53... Qxg4+ {[%clk 0:00:06]}
54. Kh1 {[%clk 0:00:06.4]} 54... Qf3+ {[%clk 0:00:06.1]} 0-1

[Event "*** SCC Grand Prix: Titled Tuesday Blitz"]
[Site "Chess.com"]
[Date "2020.08.25"]
[Round "2"]
[White "BilodeauA"]
[Black "varacalli"]
[Result "0-1"]
[WhiteElo "2813"]
[BlackElo "2362"]
[TimeControl "180+1"]
[EndTime "10:20:14 PDT"]
[Termination "varacalli won by resignation"]

1. d4 {[%clk 0:03:00.9]} 1... Nf6 {[%clk 0:02:59.2]} 2. Nc3 {[%clk 0:03:01.5]}
2... d5 {[%clk 0:02:58.6]} 3. Bf4 {[%clk 0:03:02]} 3... a6 {[%clk 0:02:56.9]} 4.
e3 {[%clk 0:03:02.1]} 4... e6 {[%clk 0:02:56.7]} 5. g4 {[%clk 0:03:02.4]} 5...
Bd6 {[%clk 0:02:55.6]} 6. Qf3 {[%clk 0:03:01.9]} 6... b6 {[%clk 0:02:48.1]} 7.
g5 {[%clk 0:03:01.4]} 7... Nfd7 {[%clk 0:02:47.4]} 8. Bxd6 {[%clk 0:02:59.3]}
8... cxd6 {[%clk 0:02:47.3]} 9. h4 {[%clk 0:03:00]} 9... Bb7 {[%clk 0:02:46.5]}
10. Qg3 {[%clk 0:02:57.2]} 10... Qe7 {[%clk 0:02:45.4]} 11. f4 {[%clk
0:02:56.6]} 11... Nc6 {[%clk 0:02:43.5]} 12. Nf3 {[%clk 0:02:56.8]} 12... O-O-O
{[%clk 0:02:42.9]} 13. O-O-O {[%clk 0:02:56.5]} 13... Kb8 {[%clk 0:02:42.7]} 14.
Kb1 {[%clk 0:02:56.2]} 14... b5 {[%clk 0:02:42.7]} 15. h5 {[%clk 0:02:51.9]}
15... Nb6 {[%clk 0:02:41.5]} 16. Rh2 {[%clk 0:02:42.5]} 16... Rc8 {[%clk
0:02:37.9]} 17. Qe1 {[%clk 0:02:39.4]} 17... Rc7 {[%clk 0:02:30.6]} 18. Ne2
{[%clk 0:02:39.1]} 18... Rhc8 {[%clk 0:02:30.3]} 19. Nc1 {[%clk 0:02:39.8]}
19... Nc4 {[%clk 0:02:22.7]} 20. Bxc4 {[%clk 0:02:39]} 20... bxc4 {[%clk
0:02:16.7]} 21. c3 {[%clk 0:02:39.1]} 21... Ka8 {[%clk 0:02:13.3]} 22. Kc2
{[%clk 0:02:39.4]} 22... Rb8 {[%clk 0:02:13.4]} 23. Rdd2 {[%clk 0:02:37.3]}
23... a5 {[%clk 0:02:08.9]} 24. Kd1 {[%clk 0:02:37.6]} 24... Ba6 {[%clk
0:02:09.2]} 25. Ke2 {[%clk 0:02:37.4]} 25... Rcb7 {[%clk 0:02:09.4]} 26. Kf1
{[%clk 0:02:37.9]} 26... Rb6 {[%clk 0:02:05.3]} 27. Kg1 {[%clk 0:02:37.8]} 27...
Qb7 {[%clk 0:02:05.1]} 28. Qf2 {[%clk 0:02:38]} 28... a4 {[%clk 0:02:01.7]} 29.
a3 {[%clk 0:02:34.1]} 29... Na5 {[%clk 0:01:57.9]} 30. Kg2 {[%clk 0:02:31]}
30... Nb3 {[%clk 0:01:57.5]} 31. Nxb3 {[%clk 0:02:30.7]} 31... Rxb3 {[%clk
0:01:58.4]} 32. Kg3 {[%clk 0:02:30.5]} 32... Rb6 {[%clk 0:01:50.1]} 33. Qe2
{[%clk 0:02:30.1]} 33... Qd7 {[%clk 0:01:47.7]} 34. Qd1 {[%clk 0:02:29.4]} 34...
Bb7 {[%clk 0:01:47]} 35. Qc2 {[%clk 0:02:29.4]} 35... Rh8 {[%clk 0:01:39.3]} 36.
Rde2 {[%clk 0:02:17.7]} 36... Bc6 {[%clk 0:01:38.7]} 37. Qb1 {[%clk 0:02:12.8]}
37... Rbb8 {[%clk 0:01:37.4]} 38. Kf2 {[%clk 0:02:08.6]} 38... Rbg8 {[%clk
0:01:35.7]} 39. Rg2 {[%clk 0:02:07.1]} 39... f5 {[%clk 0:01:21.6]} 40. gxf6
{[%clk 0:02:02.9]} 40... gxf6 {[%clk 0:01:21.4]} 41. Kg1 {[%clk 0:02:02.4]}
41... Qf7 {[%clk 0:01:18]} 42. Rxg8+ {[%clk 0:01:40.4]} 42... Rxg8+ {[%clk
0:01:16.3]} 43. Rg2 {[%clk 0:01:41.1]} 43... Rxg2+ {[%clk 0:01:14.8]} 44. Kxg2
{[%clk 0:01:42]} 44... Qxh5 {[%clk 0:01:15]} 45. Kf2 {[%clk 0:01:42.2]} 45...
Be8 {[%clk 0:01:09.7]} 46. Qd1 {[%clk 0:01:41.5]} 46... Kb7 {[%clk 0:01:01.2]}
47. Qc2 {[%clk 0:01:21.7]} 47... Kb8 {[%clk 0:00:39.8]} 48. Qb1 {[%clk
0:01:21.6]} 48... Bg6 {[%clk 0:00:37.3]} 49. Qg1 {[%clk 0:01:18.4]} 49... Be4
{[%clk 0:00:34.5]} 50. Nd2 {[%clk 0:01:14.8]} 50... Qh4+ {[%clk 0:00:33.2]} 51.
Qg3 {[%clk 0:01:14.9]} 51... Qh6 {[%clk 0:00:31.5]} 52. Nxe4 {[%clk 0:00:37.1]}
52... dxe4 {[%clk 0:00:30.6]} 53. f5 {[%clk 0:00:37]} 53... e5 {[%clk
0:00:28.4]} 54. Qg8+ {[%clk 0:00:31.4]} 54... Kb7 {[%clk 0:00:26.7]} 55. Qxc4
{[%clk 0:00:31.7]} 55... Qh2+ {[%clk 0:00:25.7]} 56. Ke1 {[%clk 0:00:32.2]}
56... Qg1+ {[%clk 0:00:24.6]} 57. Ke2 {[%clk 0:00:26.7]} 57... Qg2+ {[%clk
0:00:24.9]} 58. Kd1 {[%clk 0:00:26.6]} 58... Qf3+ {[%clk 0:00:23.4]} 59. Kc2
{[%clk 0:00:26.2]} 59... Qxe3 {[%clk 0:00:20.6]} 60. dxe5 {[%clk 0:00:23]} 60...
Qd3+ {[%clk 0:00:19.2]} 61. Qxd3 {[%clk 0:00:23.4]} 61... exd3+ {[%clk
0:00:20.1]} 62. Kxd3 {[%clk 0:00:23.9]} 62... dxe5 {[%clk 0:00:20.5]} 63. c4
{[%clk 0:00:19.3]} 63... h5 {[%clk 0:00:20.6]} 64. Ke4 {[%clk 0:00:17.8]} 64...
h4 {[%clk 0:00:20.9]} 65. Ke3 {[%clk 0:00:18.7]} 65... Kc6 {[%clk 0:00:20.9]}
0-1